fUST/lending_fUST_20251205
["ID","MTS","AMOUNT","RATE_DAILY","PERIOD"]
[396249569,1764877839075,-457.00457085,0.00013273,2]
[396249571,1764877839084,-500.0,0.00013273,2]
[396249572,1764877839094,-500.0,0.00013273,2]
[396249573,1764877839103,-222.2729613,0.00013273,2]
[396249574,1764877839112,-500.0,0.00013273,2]
[396249575,1764877839121,-500.0,0.00013273,2]
[396249576,1764877839130,-500.0,0.00013273,2]
[396249577,1764877839139,-500.0,0.00013273,2]
[396249578,1764877839149,-268.67323892,0.00013273,2]
[396249579,1764877839161,-231.32676108,0.00013273,2]
[396249581,1764877839170,-187.37849286,0.00013273,2]
[396249584,1764877839183,-314.59835248,0.00013273,2]
[396249586,1764877839196,-42.27264555,0.00013273,2]
[396249588,1764877839207,-458.25263817,0.00013273,2]
[396249590,1764877839216,-500.0,0.00013273,2]
[396249592,1764877839227,-500.0,0.00013273,2]
[396249594,1764877839237,-461.89467826,0.00013273,2]
[396249595,1764877839249,-38.10532174,0.00013273,2]
[396249596,1764877839259,-500.0,0.00013273,2]
[396249597,1764877839270,-500.0,0.00013273,2]
[396249598,1764877839280,-479.5755944,0.00013273,2]
[396249599,1764877840851,-20.4244056,0.00013273,2]
[396249600,1764877840861,-201.85664887,0.00013273,2]
[396249601,1764877840870,-501.87217172,0.00013273,2]
[396249602,1764877840879,-500.0,0.00013273,2]
[396249603,1764877840889,-500.0,0.00013273,2]
[396249605,1764877840898,-370.52757083,0.00013273,2]
[396249608,1764877840910,-129.47242917,0.00013273,2]
[396249610,1764877840919,-500.0,0.00013273,2]
[396249611,1764877840929,-500.0,0.00013273,2]
[396249614,1764877840941,-500.0,0.00013698,2]
[396249616,1764877840951,-500.0,0.00013698,2]
[396249617,1764877840960,-501.84820566,0.00013699,2]
[396249619,1764877840970,-422.9620151,0.00013699,2]
[396249622,1764877840980,-500.0,0.00013699,2]
[396249624,1764877840990,-501.13483384,0.00013699,2]
[396249626,1764877841000,-500.82275604,0.00013699,2]
[396249628,1764877841009,-501.21548759,0.00013699,2]
[396249630,1764877841019,-506.04820386,0.00013699,2]
[396249632,1764877841029,-634.83914761,0.00013699,2]
[396249634,1764877841039,-157.63695999,0.00013699,2]
[396249636,1764877841047,-501.48849571,0.00013699,2]
[396249638,1764877841057,-201.01098032,0.00013699,2]
[396249640,1764877841066,-501.33772315,0.00013699,2]
[396249642,1764877841076,-226.3645334,0.00013699,2]
[396249644,1764877841086,-500.0,0.0001382,2]
[396249646,1764877841096,-166.01570187,0.0001382,2]
[396249648,1764877841106,-545.32856606,0.0001382,2]
[396249650,1764877841115,-500.0,0.0001382,2]
[396249652,1764877841124,-500.0,0.0001382,2]
[396249654,1764877841133,-500.0,0.0001382,2]
[396249656,1764877841143,-500.0,0.0001382,2]
[396249658,1764877841152,-500.0,0.0001382,2]
[396249660,1764877841162,-287.94518306,0.00013821,2]
[396249662,1764877841171,-387.29695669,0.00013821,2]
[396249664,1764877841182,-500.0,0.00013821,2]
[396249666,1764877841195,-1000.0,0.00013821,2]
[396249668,1764877841206,-629.38650431,0.00013821,2]
[396249670,1764877841215,-386.82451217,0.00013821,2]
[396249672,1764877841226,-500.85589853,0.00013821,2]
[396249674,1764877841235,-500.66460598,0.00013821,2]
[396249676,1764877841244,-1000.0,0.00013821,2]
[396249678,1764877841253,-500.0,0.00013821,2]
[396249680,1764877841265,-501.53923172,0.00013821,2]
[396249682,1764877841274,-684.76106817,0.00013821,2]
[396249734,1764877841963,-315.23893183,0.00013821,2]
[396249736,1764877841973,-1000.0,0.00013821,2]
[396249738,1764877841983,-500.0,0.00013821,2]
[396249740,1764877841993,-615.470638,0.00013821,2]
[396249742,1764877842003,-522.86709324,0.00013821,2]
[396249744,1764877842012,-500.0,0.00013821,2]
[396249746,1764877842022,-691.19999071,0.00014422,2]
[396249748,1764877842031,-1228.79998349,0.00014422,2]
[396249750,1764877842041,-1680.0,0.00014536,2]
[396249752,1764877842050,-420.0,0.00014536,2]
[396249754,1764877842059,-300.0,0.00014584,2]
[396249756,1764877842068,-3517.86336273,0.00014948,2]
[396249758,1764877842079,-1757.62581845,0.00014948,2]
[396249761,1764877842090,-34.04952772,0.00014948,2]
[396249763,1764877842099,-1716.0,0.00015,7]
[396249765,1764877842108,-500.0,0.000151,2]
[396249767,1764877842118,-177.0,0.00015166,2]
[396249769,1764877842127,-825.70959323,0.00015181,2]
[396249771,1764877842137,-1467.92816574,0.00015181,2]
[396249773,1764877842146,-906.82933311,0.00015199,2]
[396249775,1764877842154,-860.95944175,0.00015248,2]
[396249777,1764877842163,-1184.7182224,0.00015323,2]
[396249779,1764877842171,-779.98174498,0.0001535,2]
[396249781,1764877842181,-500.0,0.00015374,2]
[396249783,1764877842193,-1042.5840492,0.0001555,2]
[396249785,1764877842201,-500.0,0.00015648,2]
[396249787,1764877842212,-500.0,0.00015922,2]
[396249789,1764877842222,-452.0,0.00015937,2]
[396249791,1764877842231,-587.0,0.00015937,2]
[396249793,1764877842242,-606.81722017,0.0001598,2]
[396249795,1764877842253,-204.50219805,0.0001598,2]
[396249797,1764877842262,-160.0,0.00016024,2]
[396249799,1764877842275,-399.12955785,0.00016024,2]
[396249801,1764877842284,-500.0,0.00016196,2]
[396249803,1764877842294,-906.82933311,0.00016287,2]
[396249805,1764877842303,-1245.53463634,0.00016369,2]
[396249807,1764877842313,-238.53,0.00016411,2]
[396249810,1764877842323,-250.0,0.00016418,2]
[396249812,1764877842332,-300.0,0.00016438,2]
[396249813,1764877842342,-200.0,0.00016438,2]
[396249816,1764877842353,-300.0,0.00016438,2]
[396249818,1764877842363,-200.0,0.00016438,2]
[396249820,1764877842373,-500.0,0.0001647,2]
[396249822,1764877842383,-860.95944175,0.00016528,2]
[396249823,1764877842393,-500.0,0.00016744,2]
[396249825,1764877842402,-500.0,0.00017018,2]
[396249827,1764877842411,-204.0,0.00017166,2]
[396249829,1764877842420,-514.88341412,0.0001723,2]
[396249831,1764877842431,-500.0,0.00017292,2]
[396249833,1764877842439,-906.82933311,0.00017375,2]
[396249835,1764877842448,-403.86572198,0.00017424,2]
[396249837,1764877842457,-720.0,0.00017473,2]
[396249839,1764877842467,-779.98174498,0.00017533,2]
[396249841,1764877842476,-500.0,0.00017566,2]
[396249843,1764877842485,-860.95944175,0.00017807,2]
[396249845,1764877842495,-500.0,0.0001784,2]
[396249847,1764877842504,-500.0,0.00018114,2]
[396249849,1764877842515,-176.19627964,0.00018353,2]
[396249851,1764877842524,-316.83615004,0.00018353,2]
[396249853,1764877842533,-500.0,0.00018388,2]
[396249855,1764877842544,-906.82933311,0.00018463,2]
[396249858,1764877842554,-500.0,0.00018662,2]
[396249859,1764877842563,-500.0,0.00018936,2]
[396249862,1764877842574,-420.3691158,0.0001894,2]
[396249863,1764877842583,-276.23505028,0.00019006,2]
[396249865,1764877842592,-860.95944175,0.00019087,2]
[396249867,1764877842602,-29.35315812,0.00019166,2]
[396249938,1764877843790,-201.64684188,0.00019166,2]
[396249939,1764877843799,-150.0,0.00019178,2]
[396249940,1764877843809,-755.85,0.000192,2]
[396249941,1764877843819,-40.00315812,0.0001921,2]
[396249942,1764877843830,-459.99684188,0.0001921,2]
[396249943,1764877843839,-171.89228432,0.00019319,2]
[396249944,1764877843850,-15.68436127,0.00019319,2]
[396249945,1764877843860,-750.30658237,0.00019319,2]
[396249946,1764877843869,-1688.18981034,0.00019319,2]
[396249947,1764877843879,-233.38894575,0.00019319,2]
[396249957,1764877846678,-677.29003737,0.00019319,2]
[396249958,1764877846690,-2087.54612005,0.00019319,2]
[396249959,1764877846699,-366.06649633,0.00019319,2]
[396249960,1764877846710,-316.20268661,0.00019393,2]
[396249961,1764877846719,-500.0,0.00019417,2]
[396249962,1764877846728,-453.77755059,0.00019417,2]
[396249963,1764877846737,-354.42918576,0.00019417,2]
[396249964,1764877846784,-145.57081424,0.00019417,2]
[396249965,1764877846794,-500.0,0.00019417,2]
[396249966,1764877846804,-500.0,0.00019418,2]
[396249967,1764877846814,-311.74664582,0.00019418,2]
[396249968,1764877846825,-188.25335418,0.00019418,2]
[396249969,1764877846835,-500.0,0.00019418,2]
[396249972,1764877846844,-535.11,0.00019418,2]
[396249974,1764877846854,-500.0,0.00019484,2]
[396249976,1764877846863,-500.0,0.00019515,2]
[396249977,1764877846873,-500.0,0.00019515,3]
[396249978,1764877846882,-500.0,0.00019517,2]
[396249979,1764877846891,-500.0,0.00019517,2]
[396249980,1764877846900,-334.14,0.00019518,2]
[396249982,1764877846910,-500.0,0.00019532,7]
[396249983,1764877846919,-907.73616244,0.00019551,2]
[396249984,1764877846928,-798.626,0.000196,2]
[396249985,1764877846938,-184.44047968,0.00019615,2]
[396249986,1764877846948,-414.0,0.00019669,2]
[396249987,1764877846958,-600.0,0.00019704,10]
[396249988,1764877846967,-779.98174498,0.00019717,2]
[396249989,1764877846977,-250.0,0.00019726,2]
[396249990,1764877846986,-500.0,0.00019758,2]
[396249991,1764877846996,-218.41988459,0.00019814,2]
[396249992,1764877847006,-497.22309051,0.00019965,2]
[396249993,1764877847016,-300.0,0.0002,2]
[396249994,1764877847025,-500.0,0.00020032,2]
[396249995,1764877847035,-168.0,0.00020046,2]
[396249996,1764877847044,-151.0,0.000201,4]
[396249997,1764877847053,-151.0,0.0002012,2]
[396249998,1764877847062,-151.0,0.0002012,2]
[396249999,1764877847072,-151.0,0.0002012,2]
[396250000,1764877847082,-151.0,0.0002012,2]
[396250001,1764877847091,-500.0,0.0002017,2]
[396250002,1764877847101,-500.0,0.0002017,2]
[396250003,1764877847110,-500.0,0.0002017,2]
[396250004,1764877847119,-500.0,0.0002017,2]
[396250005,1764877847129,-500.0,0.0002017,10]
[396250006,1764877847138,-500.0,0.0002017,2]
[396250007,1764877847147,-500.0,0.0002017,2]
[396250008,1764877847156,-500.0,0.0002017,2]
[396250009,1764877847165,-339.56917066,0.0002017,10]
[396250010,1764877847174,-487.92559,0.00020187,2]
[396250011,1764877847184,-151.0,0.00020257,2]
[396250012,1764877847198,-151.0,0.00020257,2]
[396250013,1764877847207,-151.0,0.00020257,2]
[396250014,1764877847217,-198.55780571,0.00020257,2]
[396250015,1764877847227,-350.0,0.00020274,2]
[396250016,1764877847237,-500.0,0.00020306,2]
[396250017,1764877847246,-860.95944175,0.00020367,2]
[396250018,1764877847255,-168.0,0.00020459,2]
[396250019,1764877847264,-168.0,0.00020521,2]
[396250020,1764877847276,-168.0,0.00020525,2]
[396250021,1764877847286,-168.0,0.00020571,2]
[396250022,1764877847295,-500.0,0.0002058,2]
[396250023,1764877847304,-755.85,0.000206,2]
[396250024,1764877847314,-500.0,0.00020628,7]
[396250025,1764877847324,-168.0,0.00020704,2]
[396250026,1764877847335,-168.0,0.00020726,2]
[396250027,1764877847344,-168.0,0.00020784,2]
[396250028,1764877847354,-151.0,0.000208,3]
[396250029,1764877847363,-550.0,0.00020822,2]
[396250030,1764877847373,-500.0,0.00020854,2]
[396250031,1764877847382,-499.16692373,0.00020857,5]
[396250032,1764877847391,-1996.66769492,0.00020857,5]
[396250033,1764877847401,-323.86076418,0.00020923,2]
[396250034,1764877847972,-560.09139673,0.00020923,2]
[396250035,1764877847981,-168.0,0.00020924,2]
[396250036,1764877847991,-168.0,0.00020992,2]
[396250037,1764877848001,-168.0,0.00021029,2]
[396250038,1764877848010,-168.0,0.00021044,2]
[396250039,1764877848019,-333.33333333,0.000211,2]
[396250040,1764877848030,-150.0,0.000211,2]
[396250041,1764877848039,-249.21913972,0.000211,2]
[396250042,1764877848049,-316.69285891,0.000211,2]
[396250043,1764877848058,-500.0,0.00021128,2]
[396250044,1764877848068,-258.0,0.00021166,2]
[396250045,1764877848077,-1333.75,0.000212,2]
[396250046,1764877848087,-265.45,0.00021401,2]
[396250047,1764877848096,-168.0,0.00021423,2]
[396250048,1764877848106,-151.0,0.000215,3]
[396250049,1764877848116,-164.42517269,0.00021513,2]
[396250057,1764877894957,1774.330318,0.00013,2]
[396250058,1764877902957,1774.330318,0.00013,2]
[396250060,1764878004549,4021.74354068,0.00013,2]
[396250065,1764878182946,1699.90547308,0.00013,2]
[396250070,1764879016283,880.6895328,0.00012352,2]
[396250086,1764879031717,-258.0,0.00013173,2]
[396250088,1764879031731,-150.0,0.00013181,2]
[396250090,1764879031740,-1200.0,0.00013267,2]
[396250092,1764879031751,-300.0,0.00013267,2]
[396250094,1764879031761,-300.0,0.00013267,2]
[396250096,1764879031771,-13937.99484891,0.00013268,2]
[396250099,1764879031783,-36062.00515109,0.00013268,2]
[396250101,1764879031792,-150.09,0.00013269,2]
[396250103,1764879031802,-998.60195726,0.0001327,2]
[396250105,1764879031812,-378.37414871,0.00013273,2]
[396250107,1764879031824,-121.62585129,0.00013273,2]
[396250109,1764879031834,-506.54513728,0.00013273,2]
[396250111,1764879031843,-407.06825215,0.00013273,2]
[396250149,1764879039912,-500.0,0.00013267,2]
[396250150,1764879039922,-211.53087946,0.00013267,2]
[396250151,1764879039931,-500.0,0.00013267,2]
[396250152,1764879039942,-500.0,0.00013267,2]
[396250153,1764879039951,-500.0,0.00013267,2]
[396250154,1764879039962,-500.0,0.00013267,2]
[396250155,1764879039972,-263.21425609,0.00013267,2]
[396250156,1764879039983,-500.0,0.00013267,2]
[396250157,1764879039993,-500.0,0.00013267,2]
[396250158,1764879040004,-500.0,0.00013267,2]
[396250159,1764879040014,-500.0,0.00013267,2]
[396250160,1764879040024,-500.0,0.00013267,2]
[396250161,1764879040035,-500.0,0.00013267,2]
[396250162,1764879040047,-500.0,0.00013267,2]
[396250164,1764879040057,-500.0,0.00013267,2]
[396250165,1764879040067,-500.0,0.00013267,2]
[396250166,1764879040077,-334.45876635,0.00013267,2]
[396250621,1764879045777,-165.54123365,0.00013267,2]
[396250623,1764879045787,-500.0,0.00013267,2]
[396250624,1764879045796,-500.0,0.00013267,2]
[396250626,1764879045806,-500.0,0.00013267,2]
[396250627,1764879045815,-535.99160192,0.00013267,2]
[396250629,1764879045825,-500.0,0.00013267,2]
[396250631,1764879045834,-500.0,0.00013267,2]
[396250632,1764879045844,-500.0,0.00013267,2]
[396250634,1764879045854,-500.0,0.00013267,2]
[396250636,1764879045864,-519.8132437,0.00013267,2]
[396250637,1764879045873,-500.0,0.00013267,2]
[396250639,1764879045884,-500.0,0.00013267,2]
[396250640,1764879045894,-500.0,0.00013267,2]
[396250641,1764879045903,-500.0,0.00013267,2]
[396250643,1764879045913,-500.0,0.00013267,2]
[396250645,1764879045922,-240.06951341,0.00013267,2]
[396250646,1764879045934,-259.93048659,0.00013267,2]
[396250648,1764879045944,-340.06951341,0.00013267,2]
[396250999,1764879053876,1089.19785231,0.00013,2]
[396251351,1764879061919,1006.93070528,0.00013,2]
[396251359,1764879239399,5000.0,0.00013,2]
[396251360,1764879455757,3972.8563346,0.00013,2]
[396251361,1764879498534,1072.44424612,0.00020767,120]
[396251362,1764879601575,450.76,0.00013,2]
[396251363,1764879672106,316.83615004,0.00012817,2]
[396251376,1764880012126,-404.05667186,0.00013173,2]
[396251377,1764880110983,3593.27031477,0.0002,120]
[396251384,1764880231873,-150.0,0.00013186,2]
[396251385,1764880231883,-258.0,0.00013186,2]
[396251386,1764880231893,-150.1,0.00013269,2]
[396251387,1764880231902,-300.0,0.0001327,2]
[396251388,1764880231917,-300.0,0.0001327,2]
[396251389,1764880231927,-300.0,0.0001327,2]
[396251390,1764880231936,-1200.0,0.0001327,2]
[396251391,1764880231946,-300.0,0.0001327,2]
[396251392,1764880231957,-500.0,0.00013271,2]
[396251393,1764880231966,-500.0,0.00013271,2]
[396251395,1764880231978,-500.0,0.00013271,2]
[396251397,1764880231987,-500.0,0.00013271,2]
[396251399,1764880231996,-500.0,0.00013271,2]
[396251401,1764880232005,-426.32142561,0.00013271,2]
[396251403,1764880232015,-120.24730251,0.00013271,2]
[396251405,1764880232026,-379.75269749,0.00013271,2]
[396251407,1764880232035,-500.0,0.00013271,2]
[396251409,1764880232044,-393.89908355,0.00013271,2]
[396251411,1764880232056,-106.10091645,0.00013271,2]
[396251413,1764880232065,-500.0,0.00013271,2]
[396251415,1764880232075,-500.0,0.00013271,2]
[396251417,1764880232084,-630.13103398,0.00013271,2]
[396251419,1764880232093,-500.0,0.00013271,2]
[396251421,1764880232102,-209.12949821,0.00013271,2]
[396251423,1764880232113,-290.87050179,0.00013271,2]
[396251425,1764880232123,-500.0,0.00013271,2]
[396251427,1764880232132,-500.0,0.00013271,2]
[396251429,1764880232141,-500.0,0.00013271,2]
[396251431,1764880232151,-497.54704123,0.00013271,2]
[396251433,1764880232160,-500.0,0.00013271,2]
[396251435,1764880232169,-500.0,0.00013271,2]
[396251437,1764880232178,-498.62724034,0.00013271,2]
[396251438,1764880232188,-500.0,0.00013271,2]
[396251439,1764880232197,-500.0,0.00013271,2]
[396251440,1764880232207,-348.0,0.00013271,2]
[396251441,1764880232216,-34659.8630637,0.00013272,2]
[396251442,1764880232227,-500.0,0.00013273,2]
[396251443,1764880232236,-500.0,0.00013273,2]
[396251444,1764880232245,-224.58498768,0.00013273,2]
[396251445,1764880232255,-443.47808657,0.00013273,2]
[396251446,1764880232265,-500.5105001,0.00013273,2]
[396251447,1764880232274,-500.0,0.00013273,2]
[396251448,1764880232283,-500.0,0.00013273,2]
[396251449,1764880232292,-500.0,0.00013273,2]
[396251450,1764880232301,-167.48109854,0.00013273,2]
[396251451,1764880232310,-457.64237055,0.00013273,2]
[396251452,1764880232320,-500.0,0.00013273,2]
[396251453,1764880232329,-500.0,0.00013273,2]
[396251454,1764880232339,-500.0,0.00013273,2]
[396251455,1764880232348,-600.6013389,0.00013273,2]
[396251456,1764880232358,-399.42219749,0.00013273,2]
[396251457,1764880232368,-500.0,0.00013273,2]
[396251458,1764880232378,-500.0,0.00013273,2]
[396251459,1764880232387,-506.21504016,0.00013273,2]
[396251460,1764880232396,-500.0,0.00013273,2]
[396251461,1764880232405,-500.0,0.00013273,2]
[396251462,1764880232414,-500.0,0.00013273,2]
[396251470,1764880232696,-500.0,0.00013273,2]
[396251471,1764880232735,-500.0,0.00013273,2]
[396251472,1764880232746,-500.0,0.00013273,2]
[396251473,1764880232756,-500.0,0.00013273,2]
[396251474,1764880232765,-503.65613722,0.00013273,2]
[396251475,1764880232775,-613.91260539,0.00013273,2]
[396251476,1764880232784,-501.80619956,0.00013273,2]
[396251477,1764880232794,-491.08034357,0.00013273,2]
[396251478,1764880232803,-501.59462568,0.00013273,2]
[396251479,1764880232812,-500.0,0.00013273,2]
[396251480,1764880232822,-517.25408591,0.00013273,2]
[396251481,1764880232831,-500.0,0.00013273,2]
[396251482,1764880232841,-1944.304997,0.00013304,2]
[396251483,1764880232851,-13426.25372079,0.00013304,2]
[396251484,1764880232864,-1022.27100214,0.00013304,2]
[396251509,1764880238015,-158.4801584,0.00013271,2]
[396251510,1764880238024,-347.79233711,0.00013271,2]
[396251511,1764880238034,-383.87955594,0.00013271,2]
[396251512,1764880238047,-60.41235965,0.00013271,2]
[396251513,1764880238056,-220.59242076,0.00013304,2]
[396251514,1764880238083,-338.84055212,0.00013304,2]
[396251515,1764880238095,-754.86890581,0.00013304,2]
[396251516,1764880238106,-557.13363298,0.00013304,2]
[396251517,1764880238117,-333.71912776,0.00013304,2]
[396251518,1764880238146,-13878.96978694,0.00013304,2]
[396251519,1764880238155,-151.253891,0.00013304,2]
[396251520,1764880238164,-1122.93880015,0.00013477,2]
[396251521,1764880238173,-500.0,0.00013547,2]
[396251522,1764880238182,-439.133031,0.00013699,2]
[396251523,1764880238191,-643.5171798,0.00013699,2]
[396251524,1764880238200,-501.16114095,0.00013699,2]
[396251525,1764880238209,-501.74094129,0.00013699,2]
[396251526,1764880238218,-500.0,0.00013699,2]
[396251527,1764880238226,-504.43007054,0.00013699,2]
[396251528,1764880238236,-500.6537172,0.00013699,2]
[396251529,1764880238245,-157.72801628,0.00013699,2]
[396251530,1764880238254,-501.00123382,0.00013699,2]
[396251531,1764880238263,-501.16680434,0.00013699,2]
[396251532,1764880238272,-486.8214742,0.00013699,2]
[396251533,1764880238281,-519.46905192,0.00013699,2]
[396251534,1764880238291,-501.45536403,0.00013699,2]
[396251535,1764880238300,-1000.0,0.00013699,2]
[396251536,1764880238309,-1000.0,0.00013699,2]
[396251537,1764880238319,-1000.0,0.00013699,2]
[396251538,1764880238327,-590.9337,0.00013699,2]
[396251539,1764880238337,-500.0,0.00013818,2]
[396251540,1764880238346,-500.0,0.00013818,2]
[396251541,1764880238355,-500.0,0.00013818,2]
[396251542,1764880238364,-500.0,0.00013818,2]
[396251543,1764880238373,-381.72999624,0.00013818,2]
[396251544,1764880238381,-500.0,0.00013818,2]
[396251545,1764880238390,-500.0,0.00013818,2]
[396251546,1764880238399,-500.0,0.00013818,2]
[396251547,1764880238409,-500.0,0.00013818,2]
[396251548,1764880238418,-500.0,0.00013818,2]
[396251549,1764880238428,-153.8873945,0.00013818,2]
[396251550,1764880238440,-449.69356784,0.00013818,2]
[396251551,1764880238449,-500.0,0.00013818,2]
[396251552,1764880238458,-500.0,0.00013818,2]
[396251553,1764880238470,-500.0,0.00013818,2]
[396251554,1764880238479,-613.17548783,0.00013821,2]
[396251555,1764880238489,-501.07724319,0.00013821,2]
[396251556,1764880238499,-501.14779911,0.00013821,2]
[396251557,1764880238508,-501.31221832,0.00013821,2]
[396251558,1764880238519,-170.56763079,0.00013821,2]
[396251559,1764880238528,-1000.0,0.00013821,2]
[396251560,1764880238538,-500.0,0.00013821,2]
[396251561,1764880238548,-501.37131903,0.00013821,2]
[396251562,1764880238558,-500.74400746,0.00013821,2]
[396251563,1764880238568,-500.0,0.00013821,2]
[396251564,1764880238578,-1000.0,0.00013821,2]
[396251565,1764880238588,-900.48519906,0.00013821,2]
[396251566,1764880238597,-1000.0,0.00013821,2]
[396251567,1764880238606,-1000.0,0.00013821,2]
[396251568,1764880238615,-1000.0,0.00013821,2]
[396251569,1764880238625,-500.96533981,0.00013821,2]
[396251570,1764880238634,-500.0,0.00013821,2]
[396251571,1764880238643,-454.20692025,0.00013821,2]
[396251572,1764880238652,-151.0,0.00013821,2]
[396251573,1764880238662,-201.97668683,0.0001406,2]
[396251574,1764880238671,-600.0,0.00014095,2]
[396251575,1764880238680,-151.0,0.00014221,2]
[396251576,1764880238690,-274.74102151,0.00014247,2]
[396251577,1764880238699,-1114.75331746,0.00014368,2]
[396251578,1764880238709,-480.8451695,0.00014368,2]
[396251579,1764880238719,-585.79760853,0.00014368,2]
[396251580,1764880238728,-500.0,0.00014368,2]
[396251581,1764880238738,-420.0,0.00014548,2]
[396251582,1764880238748,-1200.0,0.00014597,2]
[396251583,1764880238757,-195.43320394,0.00015005,2]
[396251584,1764880238769,-4819.5,0.00015005,2]
[396251585,1764880238781,-1797.82169046,0.00015005,2]
[396251586,1764880238792,-289.308086,0.00015005,2]
[396251587,1764880238802,-166.97,0.00015049,2]
[396251588,1764880238812,-211.09687956,0.00015149,2]
[396251589,1764880238822,-241.54711095,0.00015179,2]
[396251590,1764880238832,-177.0,0.00015186,2]
[396251591,1764880238843,-377.12429095,0.00015258,2]
[396251592,1764880238852,-1122.93880014,0.0001533,2]
[396251593,1764880238862,-1520.1310906,0.00015384,2]
[396251594,1764880238872,-720.0,0.00015504,2]
[396251595,1764880238882,-211.09687956,0.00015728,2]
[396251596,1764880238892,-587.0,0.0001595,2]
[396251597,1764880238902,-399.12955785,0.00016023,2]
[396251598,1764880238913,-160.0,0.00016023,2]
[396251599,1764880238924,-241.54711095,0.00016213,2]
[396251600,1764880238938,-211.09687956,0.00016307,2]
[396251601,1764880238949,-296.7395392,0.00016339,2]
[396251602,1764880238959,-250.0,0.00016428,2]
[396251603,1764880238969,-151.0,0.00016438,2]
[396251604,1764880238978,-177.911062,0.00016438,2]
[396251605,1764880238988,-177.911062,0.00016438,2]
[396251606,1764880238999,-177.911062,0.00016438,2]
[396251607,1764880239009,-177.911062,0.00016438,2]
[396251608,1764880239019,-177.911062,0.00016438,2]
[396251609,1764880239028,-177.911062,0.00016438,2]
[396251610,1764880239038,-177.911062,0.00016438,2]
[396251611,1764880239047,-177.911062,0.00016438,2]
[396251612,1764880239057,-218.419721,0.00016438,2]
[396251613,1764880239066,-151.0,0.00016438,2]
[396251614,1764880239076,-151.0,0.00016438,2]
[396251615,1764880239087,-151.0,0.00016438,2]
[396251616,1764880239098,-274.277124,0.00016438,2]
[396251617,1764880239108,-151.0,0.00016438,2]
[396251618,1764880239117,-151.0,0.00016438,2]
[396251619,1764880239127,-151.0,0.00016438,2]
[396251620,1764880239136,-232.035391,0.00016438,2]
[396251621,1764880239145,-158.81031,0.00016438,2]
[396251622,1764880239154,-158.81031,0.00016438,2]
[396251623,1764880239164,-158.81031,0.00016438,2]
[396251624,1764880239174,-158.81031,0.00016438,2]
[396251625,1764880239184,-158.81031,0.00016438,2]
[396251626,1764880239193,-158.81031,0.00016438,2]
[396251627,1764880239202,-158.81031,0.00016438,2]
[396251628,1764880239211,-158.81031,0.00016438,2]
[396251629,1764880239221,-158.81031,0.00016438,2]
[396251630,1764880239523,-158.81031,0.00016438,2]
[396251631,1764880239533,-158.81031,0.00016438,2]
[396251632,1764880239543,-158.81031,0.00016438,2]
[396251633,1764880239553,-158.81031,0.00016438,2]
[396251634,1764880239564,-158.81031,0.00016438,2]
[396251635,1764880239574,-158.81031,0.00016438,2]
[396251636,1764880239583,-158.81031,0.00016438,2]
[396251637,1764880239592,-158.81031,0.00016438,2]
[396251638,1764880239603,-158.81031,0.00016438,2]
[396251639,1764880239613,-158.81031,0.00016438,2]
[396251640,1764880239622,-158.810316,0.00016438,2]
[396251641,1764880239631,-181.737232,0.00016438,2]
[396251642,1764880239640,-151.0,0.00016438,2]
[396251643,1764880239649,-215.685293,0.00016438,2]
[396251644,1764880239658,-715.1911843,0.00016438,2]